[Event "11th LCC Rapid 2019"]
[Site "London"]
[Date "2019.12.07"]
[Round "6.18"]
[White "Jezierski, Colum"]
[Black "Kerr, Duncan"]
[Result "1-0"]
[WhiteElo "1908"]
[BlackElo "1902"]
[PlyCount "110"]
[EventDate "2019.12.08"]
[EventType "swiss"]
[EventCountry "ENG"]
[TimeControl "15+10"]
[BlackClock "0:03:29"]

1. e4 {[%emt 0:00:00]} e5 {[%emt 0:00:00]} 2. Nf3 {[%emt 0:00:00]} Nc6 {[%emt 0:00:00]} 3. Bb5 {[%emt 0:00:00]} a6 {[%emt 0:00:00]} 4. Ba4 {[%emt 0:00:00]} Nf6 {[%emt 0:00:00]} 5. d3 {[%emt 0:00:00]} d6 {[%emt 0:00:00]} 6. c3 {[%emt 0:00:00]} g6 {[%emt 0:00:00]} 7. h3 {[%emt 0:00:00]} Bg7 {[%emt 0:00:00]} 8. O-O {[%emt 0:00:00]} O-O {[%emt 0:00:00]} 9. Re1 {[%emt 0:00:00]} b5 {[%emt 0:00:00]} 10. Bb3 {[%emt 0:00:00]} Bb7 {[%emt 0:00:00]} 11. Nbd2 {[%emt 0:00:00]} Nb8 {[%emt 0:00:00]} 12. Nf1 {[%emt 0:00:00]} Nbd7 {[%emt 0:00:00]} 13. Be3 {[%emt 0:03:42]} c5 {[%emt 0:00:00]} 14. Ng3 {[%emt 0:00:00]} d5 {[%emt 0:00:00]} 15. exd5 {[%emt 0:00:00]} Nxd5 {[%emt 0:00:00]} 16. Bg5 {[%emt 0:00:00]} Qc7 {[%emt 0:00:00]} 17. Qd2 {[%emt 0:00:00]} Nf4 {[%emt 0:00:00]} 18. Ne4 {[%emt 0:00:00]} h6 {[%emt 0:00:00]} 19. Bxf4 {[%emt 0:00:00]} exf4 {[%emt 0:00:00]} 20. Rad1 {[%emt 0:00:00]} Rfe8 {[%emt 0:00:00]} 21. Nh4 {[%emt 0:00:00]} c4 {[%emt 0:00:00]} 22. dxc4 {[%emt 0:00:00]} Ne5 {[%emt 0:03:33]} 23. Nd6 {[%emt 0:00:00]} Red8 {[%emt 0:00:14]} 24. cxb5 {[%emt 0:00:00]} axb5 {[%emt 0:00:12]} 25. Nxb5 {[%emt 0:00:00]} Qe7 {[%emt 0:00:14]} 26. Qxf4 {[%emt 0:00:00]} Qg5 {[%emt 0:00:07]} 27. Qxg5 {[%emt 0:00:05]} hxg5 {[%emt 0:00:04]} 28. Nd6 {[%emt 0:00:24]} Bc6 {[%emt 0:00:13]} 29. Nxg6 {[%emt 0:00:04]} Nxg6 {[%emt 0:00:15]} 30. Bxf7+ {[%emt 0:00:02]} Kh7 {[%emt 0:00:01]} 31. Bb3 {[%emt 0:00:14]} Nf4 {[%emt 0:00:07]} 32. Bc2+ {[%emt 0:00:01]} Kh6 {[%emt 0:00:06]} 33. Nf7+ {[%emt 0:00:03]} Kh5 {[%emt 0:00:04]} 34. Nxd8 {[%emt 0:00:02]} Bxg2 {[%emt 0:00:26]} 35. Ne6 {[%emt 0:00:07]} Nxe6 {[%emt 0:00:15]} 36. Rxe6 {[%emt 0:00:02]} Bxh3 {[%emt 0:00:10]} 37. Rd7 {[%emt 0:00:08]} Bxe6 {[%emt 0:00:04]} 38. Rxg7 {[%emt 0:00:02]} Rxa2 {[%emt 0:00:06]} 39. Re7 {[%emt 0:00:29]} Bd5 {[%emt 0:00:09]} 40. Bd1+ {[%emt 0:00:08]} Kh6 {[%emt 0:00:07]} 41. Rd7 {[%emt 0:00:00]} Be4 {[%emt 0:00:10]} 42. Rd6+ {[%emt 0:00:00]} Kg7 {[%emt 0:00:06]} 43. Kh2 {[%emt 0:00:00]} Rxb2 {[%emt 0:00:02]} 44. Kg3 {[%emt 0:00:00]} Rb1 {[%emt 0:00:10]} 45. c4 {[%emt 0:00:00]} Rc1 {[%emt 0:00:06]} 46. Rd4 {[%emt 0:00:00]} Ba8 {[%emt 0:00:27]} 47. Kg4 {[%emt 0:00:00]} Kf6 {[%emt 0:00:09]} 48. Rd6+ {[%emt 0:00:00]} Ke5 {[%emt 0:00:07]} 49. Rd8 {[%emt 0:00:00]} Rxc4+ {[%emt 0:00:03]} 50. Kxg5 {[%emt 0:00:00]} Bb7 {[%emt 0:00:21]} 51. f4+ {[%emt 0:00:00]} Ke4 {[%emt 0:00:15]} 52. Re8+ {[%emt 0:00:00]} Kd4 {[%emt 0:00:13]} 53. f5 {[%emt 0:00:02]} Rc1 {[%emt 0:00:09]} 54. Rd8+ {[%emt 0:00:07]} Ke5 {[%emt 0:00:18]} 55. Re8+ {[%emt 0:00:14]} Kd6 {[%emt 0:00:22]} 1-0

[Event "11th LCC Rapid 2019"]
[Site "London"]
[Date "2019.12.07"]
[Round "6.19"]
[White "Nayak, Raghav"]
[Black "Salem, Ihab"]
[Result "1-0"]
[WhiteElo "1914"]
[BlackElo "2071"]
[PlyCount "83"]
[EventDate "2019.12.08"]
[EventType "swiss"]
[EventCountry "ENG"]
[TimeControl "15+10"]
[WhiteClock "0:02:06"]
[BlackClock "0:00:41"]

1. e4 {[%emt 0:00:00]} e5 {[%emt 0:00:00]} 2. f4 {[%emt 0:00:00]} d5 {[%emt 0:00:00]} 3. exd5 {[%emt 0:00:00]} exf4 {[%emt 0:00:00]} 4. Nf3 {[%emt 0:00:00]} Nf6 {[%emt 0:00:00]} 5. Bc4 {[%emt 0:00:00]} Nxd5 {[%emt 0:00:00]} 6. O-O {[%emt 0:00:00]} Be7 {[%emt 0:00:00]} 7. Bb3 {[%emt 0:00:00]} Nc6 {[%emt 0:00:00]} 8. c4 {[%emt 0:00:00]} Nf6 {[%emt 0:00:00]} 9. d4 {[%emt 0:00:00]} Bg4 {[%emt 0:00:00]} 10. d5 {[%emt 0:00:00]} Ne5 {[%emt 0:00:00]} 11. Bxf4 {[%emt 0:00:00]} Nxf3+ {[%emt 0:00:00]} 12. gxf3 {[%emt 0:00:00]} Bh3 {[%emt 0:00:00]} 13. Ba4+ {[%emt 0:00:00]} Kf8 {[%emt 0:00:00]} 14. Re1 {[%emt 0:00:00]} Nh5 {[%emt 0:00:00]} 15. Be3 {[%emt 0:00:00]} Qd6 {[%emt 0:00:00]} 16. Kh1 {[%emt 0:00:00]} Bf6 {[%emt 0:00:00]} 17. Nc3 {[%emt 0:00:00]} Be5 {[%emt 0:00:11]} 18. Ne4 {[%emt 0:00:00]} Qd8 {[%emt 0:00:23]} 19. Ng5 {[%emt 0:01:04]} Bf5 {[%emt 0:00:24]} 20. Bc5+ {[%emt 0:00:17]} Kg8 {[%emt 0:00:19]} 21. Rxe5 {[%emt 0:00:39]} Qxg5 {[%emt 0:00:02]} 22. Qe2 {[%emt 0:00:52]} h6 {[%emt 0:00:26]} 23. Bc2 {[%emt 0:00:27]} Nf4 {[%emt 0:00:32]} 24. Qf2 {[%emt 0:00:31]} Nh3 {[%emt 0:00:17]} 25. Qe2 {[%emt 0:00:17]} Nf4 {[%emt 0:00:31]} 26. Qd2 {[%emt 0:00:06]} Nd3 {[%emt 0:00:56]} 27. Qxg5 {[%emt 0:00:10]} hxg5 {[%emt 0:00:01]} 28. Rxf5 {[%emt 0:00:06]} Nxc5 {[%emt 0:00:02]} 29. Rxg5 {[%emt 0:00:08]} Re8 {[%emt 0:00:01]} 30. Rag1 {[%emt 0:00:06]} g6 {[%emt 0:00:01]} 31. b4 {[%emt 0:00:07]} Re2 {[%emt 0:00:02]} 32. R5g2 {[%emt 0:00:08]} Rxg2 {[%emt 0:00:01]} 33. Kxg2 {[%emt 0:00:16]} Nd7 {[%emt 0:00:04]} 34. Re1 {[%emt 0:00:04]} Kg7 {[%emt 0:00:04]} 35. Re7 {[%emt 0:00:05]} Rd8 {[%emt 0:00:01]} 36. Ba4 {[%emt 0:00:09]} Nb6 {[%emt 0:00:03]} 37. Bb3 {[%emt 0:00:15]} Nd7 {[%emt 0:00:01]} 38. c5 {[%emt 0:00:18]} Nf6 {[%emt 0:00:26]} 39. d6 {[%emt 0:00:13]} Rf8 {[%emt 0:00:02]} 40. dxc7 {[%emt 0:00:05]} Ng8 {[%emt 0:00:05]} 41. Rd7 {[%emt 0:00:06]} Nf6 {[%emt 0:00:04]} 42. Rd8 {[%emt 0:00:05]} 1-0

[Event "11th LCC Rapid 2019"]
[Site "London"]
[Date "2019.12.07"]
[Round "6.20"]
[White "Phillips, David A"]
[Black "Rahman, Asad"]
[Result "1/2-1/2"]
[WhiteElo "2055"]
[BlackElo "2200"]
[PlyCount "87"]
[EventDate "2019.12.08"]
[EventType "swiss"]
[EventCountry "ENG"]
[TimeControl "15+10"]
[WhiteClock "0:01:51"]
[BlackClock "0:00:36"]

1. e4 {[%emt 0:00:00]} c6 {[%emt 0:00:00]} 2. d4 {[%emt 0:00:00]} d5 {[%emt 0:00:00]} 3. Nc3 {[%emt 0:00:00]} dxe4 {[%emt 0:00:00]} 4. Nxe4 {[%emt 0:00:00]} g6 {[%emt 0:00:00]} 5. Nf3 {[%emt 0:00:00]} Bg7 {[%emt 0:00:00]} 6. Bc4 {[%emt 0:00:00]} Nf6 {[%emt 0:00:00]} 7. Neg5 {[%emt 0:00:00]} O-O {[%emt 0:00:00]} 8. Ne5 {[%emt 0:00:00]} Nd5 {[%emt 0:00:00]} 9. Ngf3 {[%emt 0:00:00]} Nd7 {[%emt 0:00:00]} 10. Nxd7 {[%emt 0:00:00]} Bxd7 {[%emt 0:00:00]} 11. O-O {[%emt 0:00:00]} Bg4 {[%emt 0:00:00]} 12. c3 {[%emt 0:00:00]} Qc7 {[%emt 0:00:00]} 13. h3 {[%emt 0:00:00]} Bf5 {[%emt 0:00:00]} 14. Re1 {[%emt 0:00:00]} Rae8 {[%emt 0:00:00]} 15. Ne5 {[%emt 0:00:00]} f6 {[%emt 0:00:00]} 16. Ng4 {[%emt 0:00:00]} Bxg4 {[%emt 0:00:00]} 17. Qxg4 {[%emt 0:00:00]} e5 {[%emt 0:00:00]} 18. dxe5 {[%emt 0:00:00]} fxe5 {[%emt 0:00:00]} 19. Be3 {[%emt 0:00:00]} Kh8 {[%emt 0:00:00]} 20. Rad1 {[%emt 0:00:00]} Nxe3 {[%emt 0:00:00]} 21. Rxe3 {[%emt 0:00:00]} Rf4 {[%emt 0:00:00]} 22. Qe2 {[%emt 0:00:00]} Ref8 {[%emt 0:00:00]} 23. f3 {[%emt 0:00:00]} Qb6 {[%emt 0:00:00]} 24. Bd3 {[%emt 0:01:21]} e4 {[%emt 0:01:12]} 25. Bxe4 {[%emt 0:01:06]} Rxe4 {[%emt 0:00:01]} 26. fxe4 {[%emt 0:00:02]} Bh6 {[%emt 0:00:01]} 27. Re1 {[%emt 0:01:52]} Bxe3+ {[%emt 0:00:27]} 28. Qxe3 {[%emt 0:00:01]} Qxb2 {[%emt 0:00:01]} 29. Qd4+ {[%emt 0:00:25]} Kg8 {[%emt 0:00:01]} 30. Qc4+ {[%emt 0:00:09]} Kg7 {[%emt 0:00:10]} 31. Qd4+ {[%emt 0:00:02]} Kh6 {[%emt 0:00:40]} 32. Qe3+ {[%emt 0:00:13]} g5 {[%emt 0:00:39]} 33. Qg3 {[%emt 0:00:14]} Qb6+ {[%emt 0:00:29]} 34. Kh2 {[%emt 0:00:07]} Qf2 {[%emt 0:00:05]} 35. Qd6+ {[%emt 0:00:07]} Rf6 {[%emt 0:00:14]} 36. Qd1 {[%emt 0:00:11]} Qf4+ {[%emt 0:00:31]} 37. Kh1 {[%emt 0:00:12]} Rd6 {[%emt 0:00:02]} 38. Qe2 {[%emt 0:00:18]} Rd2 {[%emt 0:00:04]} 39. Qc4 {[%emt 0:00:03]} Qg3 {[%emt 0:00:30]} 40. Qe6+ {[%emt 0:00:02]} Kh5 {[%emt 0:00:18]} 41. Qf7+ {[%emt 0:00:12]} Kh6 {[%emt 0:00:04]} 42. Qf6+ {[%emt 0:00:15]} Kh5 {[%emt 0:00:02]} 43. Qf7+ {[%emt 0:00:05]} Kh6 {[%emt 0:00:03]} 44. Qf6+ {[%emt 0:00:02]} 1/2-1/2

[Event "11th LCC Rapid 2019"]
[Site "London"]
[Date "2019.12.07"]
[Round "6.21"]
[White "Karumazondo, Ragarirai Ernest"]
[Black "Watson, Mikey J"]
[Result "0-1"]
[WhiteElo "1900"]
[BlackElo "1973"]
[PlyCount "62"]
[EventDate "2019.12.08"]
[EventType "swiss"]
[EventCountry "ENG"]
[TimeControl "15+10"]
[WhiteClock "0:10:38"]
[BlackClock "0:04:30"]

1. e4 {[%emt 0:00:00]} c6 {[%emt 0:00:00]} 2. Nf3 {[%emt 0:00:00]} d5 {[%emt 0:00:00]} 3. exd5 {[%emt 0:00:00]} cxd5 {[%emt 0:00:00]} 4. Ne5 {[%emt 0:00:00]} Nc6 {[%emt 0:00:00]} 5. d4 {[%emt 0:00:00]} Nf6 {[%emt 0:00:00]} 6. c3 {[%emt 0:00:00]} g6 {[%emt 0:00:00]} 7. Bd3 {[%emt 0:00:00]} Bg7 {[%emt 0:00:00]} 8. f4 {[%emt 0:00:00]} O-O {[%emt 0:00:00]} 9. O-O {[%emt 0:00:00]} Ne4 {[%emt 0:00:00]} 10. Nd2 {[%emt 0:00:00]} Nd6 {[%emt 0:00:00]} 11. g4 {[%emt 0:00:00]} f5 {[%emt 0:00:00]} 12. g5 {[%emt 0:00:00]} Nxe5 {[%emt 0:00:00]} 13. dxe5 {[%emt 0:00:00]} Ne4 {[%emt 0:00:00]} 14. Nf3 {[%emt 0:00:00]} Bd7 {[%emt 0:00:00]} 15. Be3 {[%emt 0:00:00]} Bc6 {[%emt 0:00:00]} 16. Nd4 {[%emt 0:00:00]} Qd7 {[%emt 0:00:00]} 17. Qe2 {[%emt 0:00:00]} e6 {[%emt 0:00:00]} 18. h4 {[%emt 0:00:00]} Ng3 {[%emt 0:00:00]} 19. Qg2 {[%emt 0:00:00]} Nxf1 {[%emt 0:00:00]} 20. Qxf1 {[%emt 0:00:00]} a6 {[%emt 0:00:00]} 21. a3 {[%emt 0:00:00]} Rfc8 {[%emt 0:00:00]} 22. Qe2 {[%emt 0:00:00]} Bf8 {[%emt 0:00:00]} 23. Kg2 {[%emt 0:00:00]} Bc5 {[%emt 0:00:00]} 24. h5 {[%emt 0:00:00]} Bxd4 {[%emt 0:00:00]} 25. Bxd4 {[%emt 0:00:00]} Bb5 {[%emt 0:00:00]} 26. hxg6 {[%emt 0:00:00]} hxg6 {[%emt 0:00:00]} 27. Rh1 {[%emt 0:00:00]} Kg7 {[%emt 0:00:00]} 28. Qf2 {[%emt 0:00:00]} Bxd3 {[%emt 0:00:00]} 29. Rh6 {[%emt 0:00:41]} Be4+ {[%emt 0:00:00]} 30. Kg3 {[%emt 0:00:08]} Rh8 {[%emt 0:00:00]} 31. Qh2 {[%emt 0:00:06]} Qb5 {[%emt 0:00:00]} 0-1

[Event "11th LCC Rapid 2019"]
[Site "London"]
[Date "2019.12.07"]
[Round "6.22"]
[White "Titorenko, Kostyantyn"]
[Black "Leslie, Alex"]
[Result "1/2-1/2"]
[WhiteElo "1772"]
[BlackElo "1875"]
[PlyCount "135"]
[EventDate "2019.12.08"]
[EventType "swiss"]
[EventCountry "ENG"]
[TimeControl "15+10"]
[WhiteClock "0:03:02"]
[BlackClock "0:01:43"]

1. e4 {[%emt 0:00:00]} c5 {[%emt 0:00:00]} 2. Nc3 {[%emt 0:00:00]} Nc6 {[%emt 0:00:00]} 3. g3 {[%emt 0:00:00]} g6 {[%emt 0:00:00]} 4. Bg2 {[%emt 0:00:00]} Bg7 {[%emt 0:00:00]} 5. d3 {[%emt 0:00:00]} e5 {[%emt 0:00:00]} 6. Be3 {[%emt 0:00:00]} d6 {[%emt 0:00:00]} 7. Qd2 {[%emt 0:00:00]} Be6 {[%emt 0:00:00]} 8. Nge2 {[%emt 0:00:00]} Nge7 {[%emt 0:00:00]} 9. Bh6 {[%emt 0:00:00]} Bxh6 {[%emt 0:00:00]} 10. Qxh6 {[%emt 0:00:00]} Qd7 {[%emt 0:00:00]} 11. a3 {[%emt 0:00:00]} f5 {[%emt 0:00:00]} 12. O-O-O {[%emt 0:00:00]} O-O-O {[%emt 0:00:00]} 13. Qd2 {[%emt 0:00:00]} Kb8 {[%emt 0:00:00]} 14. exf5 {[%emt 0:00:00]} gxf5 {[%emt 0:00:00]} 15. f4 {[%emt 0:00:00]} Nd4 {[%emt 0:00:00]} 16. Kb1 {[%emt 0:00:00]} Nec6 {[%emt 0:00:00]} 17. Rhe1 {[%emt 0:00:00]} Rhe8 {[%emt 0:00:00]} 18. Nd5 {[%emt 0:00:00]} Qf7 {[%emt 0:00:00]} 19. Nec3 {[%emt 0:00:00]} Ne7 {[%emt 0:00:00]} 20. Nxe7 {[%emt 0:00:00]} Qxe7 {[%emt 0:00:00]} 21. Ne2 {[%emt 0:00:00]} Bg8 {[%emt 0:00:00]} 22. c4 {[%emt 0:00:14]} Bf7 {[%emt 0:00:00]} 23. Nxd4 {[%emt 0:00:06]} cxd4 {[%emt 0:00:00]} 24. Qb4 {[%emt 0:00:25]} Qc7 {[%emt 0:00:00]} 25. Rc1 {[%emt 0:00:36]} Qb6 {[%emt 0:00:36]} 26. Qxb6 {[%emt 0:00:29]} axb6 {[%emt 0:00:01]} 27. Bh3 {[%emt 0:01:14]} Bg6 {[%emt 0:00:09]} 28. Kc2 {[%emt 0:00:14]} Kc7 {[%emt 0:00:43]} 29. Kd2 {[%emt 0:01:07]} Re7 {[%emt 0:00:08]} 30. b4 {[%emt 0:00:13]} Rf8 {[%emt 0:00:39]} 31. c5 {[%emt 0:00:11]} bxc5 {[%emt 0:00:03]} 32. bxc5 {[%emt 0:00:02]} Ra8 {[%emt 0:00:15]} 33. cxd6+ {[%emt 0:00:05]} Kxd6 {[%emt 0:00:02]} 34. fxe5+ {[%emt 0:00:06]} Rxe5 {[%emt 0:00:04]} 35. Rxe5 {[%emt 0:00:08]} Kxe5 {[%emt 0:00:02]} 36. Bg2 {[%emt 0:00:27]} Rxa3 {[%emt 0:00:25]} 37. Rc5+ {[%emt 0:00:03]} Kd6 {[%emt 0:00:29]} 38. Rd5+ {[%emt 0:00:03]} Ke6 {[%emt 0:00:03]} 39. Rxd4 {[%emt 0:00:01]} Ra2+ {[%emt 0:00:02]} 40. Ke3 {[%emt 0:00:15]} Rxg2 {[%emt 0:00:05]} 41. Rb4 {[%emt 0:00:07]} Rxh2 {[%emt 0:00:09]} 42. Rxb7 {[%emt 0:00:05]} Ra2 {[%emt 0:00:17]} 43. d4 {[%emt 0:00:25]} Ra3+ {[%emt 0:00:06]} 44. Kf4 {[%emt 0:00:02]} Rd3 {[%emt 0:00:15]} 45. Rb6+ {[%emt 0:00:18]} Kd5 {[%emt 0:00:06]} 46. Rb5+ {[%emt 0:00:02]} Kxd4 {[%emt 0:00:09]} 47. g4 {[%emt 0:00:03]} fxg4 {[%emt 0:00:05]} 48. Kxg4 {[%emt 0:00:05]} Rc3 {[%emt 0:00:10]} 49. Rb6 {[%emt 0:00:18]} Kd5 {[%emt 0:00:09]} 50. Rf6 {[%emt 0:00:14]} Ke5 {[%emt 0:00:11]} 51. Rf8 {[%emt 0:00:01]} Rc7 {[%emt 0:00:17]} 52. Rf2 {[%emt 0:00:13]} Rf7 {[%emt 0:00:03]} 53. Re2+ {[%emt 0:00:02]} Kf6 {[%emt 0:00:03]} 54. Kh4 {[%emt 0:00:12]} Kg7 {[%emt 0:00:04]} 55. Kg5 {[%emt 0:00:07]} h6+ {[%emt 0:00:09]} 56. Kh4 {[%emt 0:00:00]} h5 {[%emt 0:00:09]} 57. Rd2 {[%emt 0:00:17]} Rf4+ {[%emt 0:00:11]} 58. Kg3 {[%emt 0:00:08]} Rg4+ {[%emt 0:00:03]} 59. Kh3 {[%emt 0:00:06]} Kh6 {[%emt 0:00:03]} 60. Rd6 {[%emt 0:00:05]} Rf4 {[%emt 0:00:06]} 61. Rb6 {[%emt 0:00:05]} Kg5 {[%emt 0:00:04]} 62. Rb5+ {[%emt 0:00:06]} Bf5+ {[%emt 0:00:01]} 63. Kg3 {[%emt 0:00:20]} h4+ {[%emt 0:00:03]} 64. Kg2 {[%emt 0:00:10]} h3+ {[%emt 0:00:56]} 65. Kg3 {[%emt 0:00:06]} Rg4+ {[%emt 0:00:23]} 66. Kh2 {[%emt 0:00:11]} Rg2+ {[%emt 0:00:08]} 67. Kh1 {[%emt 0:00:01]} Kf4 {[%emt 0:00:17]} 68. Rxf5+ {[%emt 0:00:04]} 1/2-1/2

[Event "11th LCC Rapid 2019"]
[Site "London"]
[Date "2019.12.07"]
[Round "6.23"]
[White "Clarke, Connor"]
[Black "Thatte, Nishchal"]
[Result "1-0"]
[WhiteElo "1704"]
[BlackElo "1723"]
[PlyCount "185"]
[EventDate "2019.12.08"]
[EventType "swiss"]
[EventCountry "ENG"]
[TimeControl "15+10"]
[WhiteClock "0:03:06"]
[BlackClock "0:02:10"]

1. d4 {[%emt 0:00:00]} Nf6 {[%emt 0:00:00]} 2. Nc3 {[%emt 0:00:00]} e6 {[%emt 0:00:00]} 3. Bf4 {[%emt 0:00:00]} Bb4 {[%emt 0:00:00]} 4. Qd3 {[%emt 0:00:00]} c5 {[%emt 0:00:00]} 5. dxc5 {[%emt 0:00:00]} Bxc5 {[%emt 0:00:00]} 6. e4 {[%emt 0:00:00]} d6 {[%emt 0:00:00]} 7. O-O-O {[%emt 0:00:00]} Ng4 {[%emt 0:00:00]} 8. Nh3 {[%emt 0:00:00]} e5 {[%emt 0:00:00]} 9. Bg3 {[%emt 0:00:00]} Nc6 {[%emt 0:00:00]} 10. Nb5 {[%emt 0:00:00]} O-O {[%emt 0:00:00]} 11. Be2 {[%emt 0:00:00]} Nf6 {[%emt 0:00:00]} 12. Nxd6 {[%emt 0:00:00]} Bxd6 {[%emt 0:00:00]} 13. Qxd6 {[%emt 0:00:00]} Qxd6 {[%emt 0:00:00]} 14. Rxd6 {[%emt 0:00:00]} Nxe4 {[%emt 0:00:00]} 15. Rd3 {[%emt 0:00:00]} Be6 {[%emt 0:00:00]} 16. a3 {[%emt 0:00:00]} Rac8 {[%emt 0:00:00]} 17. f3 {[%emt 0:00:00]} Nxg3 {[%emt 0:00:00]} 18. hxg3 {[%emt 0:00:00]} Nd4 {[%emt 0:00:00]} 19. Bd1 {[%emt 0:00:00]} Bf5 {[%emt 0:00:00]} 20. Rc3 {[%emt 0:00:03]} Rxc3 {[%emt 0:00:00]} 21. bxc3 {[%emt 0:00:01]} Nb5 {[%emt 0:00:00]} 22. g4 {[%emt 0:00:58]} Bg6 {[%emt 0:00:00]} 23. Re1 {[%emt 0:01:09]} f6 {[%emt 0:00:00]} 24. Kb2 {[%emt 0:00:02]} Rc8 {[%emt 0:00:00]} 25. Re3 {[%emt 0:00:14]} Nd6 {[%emt 0:00:00]} 26. Be2 {[%emt 0:00:32]} Rc6 {[%emt 0:00:00]} 27. g5 {[%emt 0:00:59]} Rb6+ {[%emt 0:00:00]} 28. Kc1 {[%emt 0:00:32]} Nf5 {[%emt 0:00:00]} 29. Rd3 {[%emt 0:00:09]} Ng3 {[%emt 0:00:00]} 30. Rd8+ {[%emt 0:00:06]} Kf7 {[%emt 0:00:00]} 31. Bc4+ {[%emt 0:00:10]} Ke7 {[%emt 0:00:00]} 32. Rg8 {[%emt 0:00:12]} fxg5 {[%emt 0:00:00]} 33. Rxg7+ {[%emt 0:00:24]} Kf6 {[%emt 0:00:00]} 34. Rc7 {[%emt 0:00:03]} Nf5 {[%emt 0:00:00]} 35. Nf2 {[%emt 0:00:03]} Ne3 {[%emt 0:00:00]} 36. Ng4+ {[%emt 0:00:09]} Nxg4 {[%emt 0:00:00]} 37. fxg4 {[%emt 0:00:01]} Be4 {[%emt 0:00:00]} 38. Rf7+ {[%emt 0:00:10]} Kg6 {[%emt 0:00:00]} 39. Rf2 {[%emt 0:00:06]} Rc6 {[%emt 0:00:00]} 40. Bf7+ {[%emt 0:00:14]} Kg7 {[%emt 0:00:00]} 41. c4 {[%emt 0:00:17]} Ra6 {[%emt 0:00:05]} 42. Bh5 {[%emt 0:00:16]} Rxa3 {[%emt 0:00:13]} 43. Rf7+ {[%emt 0:00:02]} Kg8 {[%emt 0:00:02]} 44. Re7 {[%emt 0:00:16]} Rc3 {[%emt 0:00:26]} 45. Kd1 {[%emt 0:00:17]} Bxc2+ {[%emt 0:01:08]} 46. Kd2 {[%emt 0:00:07]} Rg3 {[%emt 0:00:11]} 47. Kxc2 {[%emt 0:00:01]} Rxg2+ {[%emt 0:00:02]} 48. Kb3 {[%emt 0:00:03]} Re2 {[%emt 0:00:23]} 49. Rxb7 {[%emt 0:00:03]} e4 {[%emt 0:00:10]} 50. Bf7+ {[%emt 0:00:15]} Kf8 {[%emt 0:00:02]} 51. Bd5 {[%emt 0:00:12]} e3 {[%emt 0:00:14]} 52. Rf7+ {[%emt 0:00:08]} Ke8 {[%emt 0:00:04]} 53. Rf3 {[%emt 0:00:04]} Re1 {[%emt 0:00:19]} 54. Kc2 {[%emt 0:00:10]} e2 {[%emt 0:00:15]} 55. Re3+ {[%emt 0:00:20]} Kd8 {[%emt 0:00:03]} 56. Bf3 {[%emt 0:00:11]} Kd7 {[%emt 0:00:56]} 57. Rxe2 {[%emt 0:00:04]} Rg1 {[%emt 0:00:08]} 58. Rh2 {[%emt 0:00:26]} Rg3 {[%emt 0:00:17]} 59. Rxh7+ {[%emt 0:00:01]} Kd6 {[%emt 0:00:01]} 60. Be2 {[%emt 0:00:03]} Ra3 {[%emt 0:00:10]} 61. Rg7 {[%emt 0:00:14]} Ra5 {[%emt 0:00:01]} 62. Bf3 {[%emt 0:00:12]} Ke6 {[%emt 0:00:09]} 63. Bd5+ {[%emt 0:00:12]} Kf6 {[%emt 0:00:03]} 64. Rf7+ {[%emt 0:00:02]} Kg6 {[%emt 0:00:05]} 65. Rf5 {[%emt 0:00:02]} Ra2+ {[%emt 0:00:07]} 66. Kb3 {[%emt 0:00:06]} Ra1 {[%emt 0:00:08]} 67. Bf7+ {[%emt 0:00:09]} Kg7 {[%emt 0:00:01]} 68. Bh5 {[%emt 0:00:04]} Kh6 {[%emt 0:00:04]} 69. Rf6+ {[%emt 0:00:01]} Kh7 {[%emt 0:00:11]} 70. Rg6 {[%emt 0:00:06]} Ra5 {[%emt 0:00:05]} 71. Kb4 {[%emt 0:00:02]} Re5 {[%emt 0:00:02]} 72. c5 {[%emt 0:00:16]} Re4+ {[%emt 0:00:15]} 73. Kb5 {[%emt 0:00:10]} Re5 {[%emt 0:00:05]} 74. Rc6 {[%emt 0:00:08]} Re7 {[%emt 0:00:37]} 75. Ka6 {[%emt 0:00:08]} Rd7 {[%emt 0:00:19]} 76. Rc8 {[%emt 0:00:05]} Re7 {[%emt 0:00:16]} 77. c6 {[%emt 0:00:03]} Re1 {[%emt 0:00:18]} 78. Kxa7 {[%emt 0:00:16]} Rc1 {[%emt 0:00:06]} 79. Rc7+ {[%emt 0:00:01]} Kg8 {[%emt 0:00:04]} 80. Be8 {[%emt 0:00:14]} Ra1+ {[%emt 0:00:04]} 81. Kb8 {[%emt 0:00:03]} Rb1+ {[%emt 0:00:02]} 82. Kc8 {[%emt 0:00:02]} Kf8 {[%emt 0:00:12]} 83. Bd7 {[%emt 0:00:02]} Re1 {[%emt 0:00:28]} 84. Kd8 {[%emt 0:00:23]} Re6 {[%emt 0:00:01]} 85. Rc8 {[%emt 0:00:30]} Re1 {[%emt 0:00:16]} 86. Rb8 {[%emt 0:00:00]} Kg7 {[%emt 0:00:49]} 87. c7 {[%emt 0:00:00]} Rd1 {[%emt 0:00:08]} 88. c8=Q {[%emt 0:00:04]} Rd6 {[%emt 0:00:10]} 89. Qc3+ {[%emt 0:00:03]} Kf7 {[%emt 0:00:23]} 90. Qf3+ {[%emt 0:00:09]} Kg7 {[%emt 0:00:03]} 91. Ke7 {[%emt 0:00:06]} Ra6 {[%emt 0:01:45]} 92. Qf7+ {[%emt 0:00:08]} Kh6 {[%emt 0:00:03]} 93. Rh8# {[%emt 0:00:01]} 1-0